fUSD/lending_fUSD_20240524
["ID","MTS","AMOUNT","RATE_DAILY","PERIOD"]
[327876281,1716573045886,-209.276906,0.00026204,7]
[327876282,1716573045895,-151.0,0.00026204,7]
[327876283,1716573045905,-209.276906,0.00026204,7]
[327876284,1716573045914,-234.035105,0.00026204,7]
[327876285,1716573045923,-151.0,0.00026204,7]
[327876286,1716573045932,-151.0,0.00026204,7]
[327876287,1716573045942,-151.0,0.00026204,7]
[327876288,1716573045951,-151.0,0.00026204,7]
[327876289,1716573045960,-151.0,0.00026204,7]
[327876290,1716573045969,-151.0,0.00026204,7]
[327876291,1716573045979,-154.12446,0.00026204,7]
[327876293,1716573045989,-151.0,0.00026204,7]
[327876295,1716573045999,-151.0,0.00026204,7]
[327876297,1716573046008,-177.794288,0.00026204,7]
[327876299,1716573046017,-151.0,0.00026204,7]
[327876301,1716573046027,-151.0,0.00026204,7]
[327876303,1716573046035,-2556.054728,0.00026204,7]
[327876304,1716573046044,-151.0,0.00026204,7]
[327876307,1716573046054,-2556.054728,0.00026204,7]
[327876309,1716573046063,-255.882757,0.00026204,7]
[327876311,1716573046073,-151.0,0.00026204,7]
[327876313,1716573046082,-151.0,0.00026204,7]
[327876315,1716573046091,-191.123589,0.00026204,7]
[327876317,1716573046100,-292.979071,0.00026204,7]
[327876318,1716573046109,-292.979071,0.00026204,7]
[327876320,1716573046120,-151.0,0.00026204,7]
[327876322,1716573046130,-151.0,0.00026204,7]
[327876326,1716573046140,-296.438998,0.00026204,7]
[327876331,1716573046150,-151.0,0.00026204,7]
[327876335,1716573046159,-296.438998,0.00026204,7]
[327876338,1716573046170,-155.76744124,0.00026262,2]
[327876340,1716573046179,-155.04118761,0.00026269,2]
[327876342,1716573046188,-150.0,0.0002629,2]
[327876345,1716573046198,-155.76744124,0.00026292,2]
[327876348,1716573046207,-199.4155311,0.00026298,2]
[327876351,1716573046216,-150.0,0.0002634,2]
[327876354,1716573046226,-150.0,0.00026436,2]
[327876357,1716573046237,-155.76744124,0.00026446,2]
[327876360,1716573046246,-200.0,0.00026453,2]
[327876362,1716573046256,-150.0,0.00026579,2]
[327876364,1716573046266,-150.0,0.00026583,2]
[327876366,1716573046275,-929.95,0.000266,2]
[327876368,1716573046284,-1500.0,0.00026607,2]
[327876370,1716573046294,-1500.0,0.00026618,2]
[327876372,1716573046303,-199.4155311,0.00026699,2]
[327876374,1716573046313,-150.0,0.00026741,2]
[327876376,1716573046323,-159.16129054,0.00026767,2]
[327876378,1716573046332,-580.67,0.000268,2]
[327876380,1716573046341,-1500.0,0.00026834,2]
[327876382,1716573046352,-150.0,0.00026836,2]
[327876384,1716573046361,-150.0,0.00026852,2]
[327876386,1716573046372,-155.04118761,0.00026859,2]
[327876388,1716573046382,-150.0,0.00026874,2]
[327876390,1716573046392,-151.0,0.00026884,7]
[327876392,1716573046402,-151.0,0.00026884,7]
[327876394,1716573046412,-22945.1356053,0.00026884,2]
[327876396,1716573046425,-600.0,0.000269,9]
[327876398,1716573046435,-150.0,0.00026903,2]
[327876400,1716573046444,-155.76744124,0.00026915,2]
[327876402,1716573046455,-299.81,0.00026921,2]
[327876404,1716573046464,-155.16,0.00026921,2]
[327876406,1716573046474,-8393.3642534,0.00026957,2]
[327876408,1716573046483,-154.30397503,0.0002699,2]
[327876410,1716573046494,-150.0,0.00026992,2]
[327876412,1716573046504,-1200.0,0.00027,2]
[327876414,1716573046514,-199.4155311,0.00027005,2]
[327876416,1716573046523,-257.11,0.00027066,2]
[327876418,1716573046533,-150.0,0.00027086,2]
[327876420,1716573046542,-150.0,0.0002709,2]
[327876423,1716573046551,-1500.0,0.00027098,2]
[327876425,1716573046560,-150.0,0.00027127,2]
[327876427,1716573046570,-150.0,0.00027168,2]
[327876428,1716573046579,-151.0,0.00027168,7]
[327876431,1716573046589,-168.87584,0.00027168,7]
[327876433,1716573046599,-168.87584,0.00027168,7]
[327876434,1716573046608,-283.245085,0.00027168,7]
[327876436,1716573046618,-283.245085,0.00027168,7]
[327876438,1716573046627,-2424.98634334,0.00027168,2]
[327876440,1716573046637,-150.0,0.00027191,2]
[327876442,1716573046646,-20312.67390194,0.000272,2]
[327876445,1716573046659,-392.29490377,0.000272,2]
[327876447,1716573046671,-11322.30067832,0.000272,2]
[327876468,1716573046858,-2495.58714316,0.00024999,2]
[327876470,1716573046869,-898.68407818,0.00024999,2]
[327876472,1716573046881,-844.15265814,0.00024999,2]
[327876475,1716573046892,-585.71196365,0.00024999,2]
[327876478,1716573046914,-1051.50902978,0.00024999,2]
[327876480,1716573046923,-2869.27169922,0.000272,2]
[327876482,1716573046935,-750.52233814,0.000272,2]
[327876485,1716573046948,-1020.83631643,0.000272,2]
[327876487,1716573046960,-378.79104645,0.000272,2]
[327876489,1716573046971,-465.45006,0.000272,2]
[327876491,1716573046981,-389.63124367,0.000272,2]
[327876493,1716573046992,-469.65,0.000272,2]
[327876496,1716573047008,-350.85670494,0.000272,2]
[327876498,1716573047019,-2440.86548356,0.000272,2]
[327876500,1716573047029,-6112.69279021,0.000272,2]
[327876502,1716573047041,-640.7472672,0.000272,2]
[327876505,1716573047052,-275.919,0.000272,2]
[327876507,1716573047063,-3210.5,0.000272,2]
[327876510,1716573047085,-757.25445626,0.000272,2]
[327876512,1716573047096,-321.38519235,0.000272,2]
[327876515,1716573047115,-19409.98507011,0.000272,2]
[327877023,1716573226352,4081.0,0.0003,30]
[327877024,1716573255152,1597.0,0.0003,30]
[327877040,1716573871412,-206.16132616,0.000128,2]
[327877041,1716573871434,-2918.87813659,0.00012899,2]
[327877042,1716573898776,-569.3931,0.000129,2]
[327877047,1716573976767,-171.24,0.00013973,2]
[327877048,1716573976842,500.0,0.00017259,2]
[327877050,1716574025142,1044.13352714,0.00017259,2]
[327877053,1716574041079,1043.343057,0.00017259,2]
[327877057,1716574054835,631.28341586,0.00017259,2]
[327877058,1716574087945,-408.401332,0.00017259,2]
[327877059,1716574087967,-3301.598668,0.00017259,2]
[327877098,1716574234069,-300.0,0.00017159,2]
[327877099,1716574234079,-2652.17784281,0.00017259,2]
[327877100,1716574234092,-1308.07393171,0.00017259,2]
[327877101,1716574234104,-2015.29501095,0.00017259,2]
[327877102,1716574234117,-691.95,0.00017259,2]
[327877103,1716574234128,-7694.07824719,0.00017259,2]
[327877104,1716574234142,-19828.00807048,0.00017259,2]
[327877105,1716574234151,-1039.68474786,0.00017259,2]
[327877106,1716574234161,-410.5352738,0.00019344,2]
[327877107,1716574234171,-150.0,0.00019345,2]
[327877108,1716574234181,-1000.0,0.00019598,2]
[327877109,1716574234190,-3039.802,0.00019762,2]
[327877110,1716574234200,-3656.008,0.00019863,2]
[327877111,1716574234210,-862.59931804,0.0002,2]
[327877112,1716574234220,-3598.22,0.00020905,2]
[327877113,1716574234230,-437.1,0.00020905,2]
[327877114,1716574234240,-1050.0,0.00021,2]
[327877115,1716574234254,-205.68,0.00021792,2]
[327877116,1716574234263,-1000.0,0.000219,2]
[327877117,1716574234273,-166.66666666,0.00022346,2]
[327877118,1716574234283,-155.04118763,0.00022364,2]
[327877119,1716574234292,-155.10096863,0.00022575,2]
[327877120,1716574234302,-159.54669856,0.00022776,2]
[327877121,1716574234312,-169.18135279,0.00022984,2]
[327877122,1716574234322,-1100.0,0.00023,2]
[327877123,1716574234332,-155.10096863,0.00023244,2]
[327877124,1716574234342,-2005.42016305,0.000234,2]
[327877125,1716574234353,-154.57456769,0.00023449,2]
[327877126,1716574234364,-154.30397504,0.00023482,2]
[327877127,1716574234374,-1000.0,0.00023721,2]
[327877128,1716574234385,-160.57154212,0.0002374,2]
[327877129,1716574234395,-1247.37868985,0.00023761,28]
[327877130,1716574234406,-157.82414397,0.00023779,2]
[327877131,1716574234416,-1000.0,0.00023854,2]
[327877132,1716574234426,-569.79,0.00023868,2]
[327877133,1716574234436,-155.10096863,0.00023875,2]
[327877134,1716574234446,-155.0,0.00023887,2]
[327877135,1716574234456,-433.17021167,0.00024,2]
[327877136,1716574234466,-472.49632202,0.00024,2]
[327877137,1716574234475,-250.0,0.00024011,2]
[327877138,1716574234489,-250.0,0.0002402,2]
[327877139,1716574234506,-205.68,0.00024056,2]
[327877140,1716574234516,-157.29,0.00024117,2]
[327877141,1716574234526,-155.45114667,0.00024121,2]
[327877142,1716574234536,-155.10096863,0.00024157,2]
[327877143,1716574234546,-292.83,0.00024162,2]
[327877144,1716574234557,-500.0,0.00024174,2]
[327877145,1716574234567,-451.99247167,0.00024205,2]
[327877146,1716574234577,-1895.25,0.00024213,2]
[327877147,1716574234587,-156.72521786,0.00024233,2]
[327877148,1716574234597,-154.30397504,0.00024639,2]
[327877149,1716574234607,-2000.0,0.00024699,2]
[327877150,1716574234617,-1000.0,0.000247,2]
[327877151,1716574234627,-155.10096863,0.00024785,2]
[327877152,1716574234637,-167.01,0.00024895,2]
[327877154,1716574234646,-1948.9151965,0.000249,2]
[327877156,1716574234656,-1150.0,0.00025,2]
[327877158,1716574234670,-155.10096863,0.00025159,2]
[327877160,1716574234680,-160.0772059,0.0002516,2]
[327877162,1716574234690,-289.0,0.0002518,2]
[327877164,1716574234699,-1466.0,0.0002518,2]
[327877166,1716574234709,-3560.774,0.0002518,2]
[327877168,1716574234718,-3531.0,0.000253,5]
[327877169,1716574234728,-161.1719559,0.00025333,2]
[327877170,1716574234738,-155.76744126,0.00025337,2]
[327877171,1716574234751,-155.76744126,0.00025625,2]
[327877172,1716574234761,-157.82414397,0.00025676,2]
[327877173,1716574234770,-155.10096863,0.00025716,2]
[327877174,1716574234780,-153.51597192,0.00025825,2]
[327877175,1716574234790,-313.83474584,0.00025837,7]
[327877176,1716574234804,-155.10096863,0.00025849,2]
[327877177,1716574234813,-155.10096863,0.0002599,2]
[327877178,1716574234823,-23447.18956077,0.00026,5]
[327877179,1716574234834,-154.30397504,0.00026034,2]
[327877180,1716574234844,-157.82414397,0.0002616,2]
[327877181,1716574234854,-155.10096863,0.00026246,2]
[327877182,1716574234865,-154.57456769,0.00026264,2]
[327877183,1716574234876,-205.68,0.00026319,2]
[327877184,1716574234886,-781.12573863,0.00026413,2]
[327877185,1716574234896,-150.0,0.00026424,2]
[327877186,1716574234906,-180.0,0.00026468,2]
[327877187,1716574234915,-151.97205109,0.00026488,2]
[327877188,1716574234925,-155.10096863,0.00026547,2]
[327877189,1716574234935,-154.83587233,0.00026601,2]
[327877190,1716574234944,-150.0,0.00026756,2]
[327877191,1716574234955,-150.0,0.00026803,2]
[327877192,1716574234965,-500.0,0.00026835,2]
[327877193,1716574234974,-500.0,0.00026835,2]
[327877194,1716574234984,-1000.0,0.00026835,2]
[327877195,1716574234993,-150.0,0.00026855,2]
[327877196,1716574235006,-150.0,0.00026861,2]
[327877197,1716574235016,-1566.72319261,0.00026864,2]
[327877198,1716574235026,-380.70037141,0.00026882,2]
[327877199,1716574235035,-150.0,0.00026887,2]
[327877200,1716574235044,-150.0,0.00026894,2]
[327877201,1716574235054,-150.0,0.0002692,2]
[327877202,1716574235063,-150.0,0.00026925,2]
[327877203,1716574235074,-274.46104063,0.00026928,2]
[327877204,1716574235084,-730.95368,0.0002693,2]
[327877205,1716574235093,-154.57456769,0.00026947,2]
[327877206,1716574235103,-155.10096863,0.00026953,2]
[327877207,1716574235112,-150.0,0.00026985,2]
[327877208,1716574235122,-150.0,0.00026993,2]
[327877209,1716574235132,-150.0,0.00026993,2]
[327877210,1716574235141,-1200.0,0.00027,2]
[327877211,1716574235150,-150.0,0.00027004,2]
[327877212,1716574235160,-1500.0,0.00027007,2]
[327877213,1716574235169,-150.0,0.0002701,2]
[327877214,1716574235179,-150.0,0.00027047,2]
[327877215,1716574235188,-150.0,0.00027053,2]
[327877216,1716574235198,-180.88214692,0.00027097,2]
[327877217,1716574235207,-25000.0,0.000271,2]
[327877218,1716574235217,-317.23230898,0.000271,2]
[327877219,1716574235226,-1038.85815903,0.000271,2]
[327877220,1716574235235,-155.10096863,0.00027103,2]
[327877221,1716574235244,-150.0,0.0002713,2]
[327877222,1716574235259,-200.0,0.00027131,2]
[327877223,1716574235268,-500.0,0.00027131,2]
[327877224,1716574235278,-200.0,0.00027131,2]
[327877225,1716574235287,-150.0,0.00027186,2]
[327877226,1716574235296,-2142.93656164,0.00027197,2]
[327877227,1716574235306,-23954.3067249,0.00027197,2]
[327877228,1716574235315,-883.32528591,0.00027197,2]
[327877229,1716574235325,-192.7333,0.00027198,2]
[327877230,1716574235334,-6241.7602304,0.00027198,2]
[327877231,1716574235344,-224.37055639,0.00027198,2]
[327877232,1716574235353,-156.19946984,0.00027199,2]
[327877233,1716574235363,-150.01,0.00027199,2]
[327877234,1716574235373,-2599.92346567,0.00027199,2]
[327877235,1716574235383,-1464.34007681,0.00027199,2]
[327877236,1716574235394,-60610.02215499,0.00027199,2]
[327877237,1716574235408,-5942.65232282,0.00027199,2]
[327877238,1716574235420,-10141.97630322,0.00027199,2]
[327877239,1716574235432,-6845.67216,0.00027199,2]
[327877240,1716574235451,-4512.90651215,0.00027199,2]
[327877241,1716574235463,-20883.84140123,0.00027199,2]
[327877242,1716574235475,-778.63384695,0.00027199,2]
[327877243,1716574235486,-604.135,0.00027199,2]
[327877244,1716574235501,-538.88,0.00027199,2]
[327877245,1716574235512,-3655.23039409,0.00027199,2]
[327877246,1716574235527,-2131.10060352,0.00027199,2]
[327877247,1716574235539,-2253.71037969,0.00027199,2]
[327877248,1716574235550,-5082.4753998,0.00027199,2]
[327877265,1716574238491,-964.221,0.0002518,2]
[327877267,1716574238504,-119.93694976,0.00027199,2]
[327877269,1716574238516,-1783.21417373,0.00027199,2]
[327877298,1716574239326,-5087.408508,0.00027199,2]
[327877299,1716574239556,-170969.9437104,0.00027199,2]
[327877300,1716574239567,-178108.37184743,0.000272,2]
[327877301,1716574239577,-22141.85689938,0.000272,2]
[327877302,1716574239588,-774.0,0.000272,2]
[327877303,1716574239598,-150.0,0.000272,5]
[327877304,1716574239608,-150.0,0.00027201,2]
[327877305,1716574239617,-150.0,0.00027202,2]
[327877306,1716574239627,-1862.0222891,0.00027212,2]
[327877307,1716574239636,-150.0,0.00027231,2]
[327877308,1716574239646,-154.57456769,0.00027274,2]
[327877309,1716574239656,-200.0,0.00027278,2]
[327877310,1716574239666,-500.0,0.00027278,2]
[327877311,1716574239675,-420.93,0.00027288,2]
[327877312,1716574239685,-163.54,0.00027288,2]
[327877313,1716574239695,-150.0,0.00027288,2]
[327877314,1716574239704,-300.0,0.00027288,2]
[327877316,1716574239714,-351.98,0.00027288,2]
[327877317,1716574239723,-154.83587233,0.00027321,2]
[327877319,1716574239732,-154.83587235,0.00027384,2]
[327877321,1716574239741,-1000.0,0.000274,2]
[327877323,1716574239751,-2881.24509757,0.000274,2]
[327877325,1716574239761,-163.79970534,0.000274,2]
[327877327,1716574239769,-7500.0,0.000274,2]
[327877329,1716574239779,-1000.0,0.000274,2]
[327877331,1716574239788,-189.02310332,0.000274,5]
[327877333,1716574239799,-2277.7133979,0.00027481,2]
[327877335,1716574239810,-2693.4045066,0.00027481,2]
[327877337,1716574239819,-3109.0956154,0.00027481,2]
[327877339,1716574239829,-3524.7867241,0.00027481,2]
[327877341,1716574239838,-509.13190203,0.00027486,2]
[327877343,1716574239848,-152.09,0.0002749,2]
[327877345,1716574239858,-299.2645732,0.00027498,2]
[327877347,1716574239868,-1316.14595007,0.00027498,2]
[327877349,1716574239880,-155.0,0.00027498,2]
[327877351,1716574239890,-200.0,0.00027498,2]
[327877353,1716574239900,-210.88346445,0.00027498,2]
[327877355,1716574239910,-155.000001,0.00027498,2]
[327877357,1716574239920,-155.0,0.00027498,2]
[327877359,1716574239930,-1263.30642158,0.00027498,2]
[327877361,1716574239939,-155.15582822,0.00027498,2]
[327877363,1716574239949,-787.61802861,0.00027498,2]
[327877365,1716574239959,-5511.49091993,0.00027498,2]
[327877367,1716574239968,-329.08448203,0.00027499,2]
[327877369,1716574239979,-277.55993092,0.00027499,2]
[327877371,1716574239988,-1093.52382414,0.00027499,15]
[327877373,1716574239998,-208.0,0.000275,5]
[327877375,1716574240008,-5500.34177407,0.000275,5]
[327877377,1716574240021,-363.3164253,0.000275,5]
[327877379,1716574240033,-2415.42535439,0.000275,5]
[327877382,1716574240044,-705.8091,0.000275,5]
[327877384,1716574240056,-572.13400403,0.000275,5]
[327877387,1716574240072,-361.7223671,0.000275,5]
[327877798,1716574244125,-340.0090999,0.0002518,2]
[327877803,1716574244138,-720.9909001,0.0002518,2]
[327877805,1716574244149,-232.4540999,0.00026967,2]
[327877810,1716574244163,-958.65665382,0.00026967,2]
[327877815,1716574244174,-457.13949501,0.00026992,2]
[327877818,1716574244185,-679.63169387,0.00027097,2]
[327877844,1716574244426,-2115.30507249,0.00027097,2]
[327877846,1716574244437,-1038.1717215,0.00027193,2]
[327877849,1716574244447,-7500.0,0.000274,2]
[327877852,1716574244457,-1054.3958515,0.00027481,2]
[327877854,1716574244466,-507.68484813,0.00027481,2]
[327877857,1716574244479,-562.93513327,0.00027481,2]
[327877860,1716574244488,-1031.80461661,0.00027481,2]
[327877862,1716574244500,-55.03949479,0.00027481,2]
[327877864,1716574244511,-954.6771758,0.00027481,2]
[327877867,1716574244523,-148.3910656,0.00027481,2]
[327877869,1716574244534,-180101.6088944,0.000275,5]
[327877871,1716574244546,-427.08391972,0.000275,5]
[327877873,1716574244557,-392.62380824,0.000275,5]
[327877876,1716574244573,-18933.60490722,0.000275,5]
[327877878,1716574244585,-3424.5,0.000275,5]
[327877880,1716574244597,-301.616,0.000275,5]
[327877882,1716574244609,-10637.93995516,0.000275,5]
[327877885,1716574244621,-2371.67090495,0.000275,5]
[327877887,1716574244632,-2999.9271055,0.000275,5]
[327877889,1716574244644,-397.66172814,0.000275,5]
[327877891,1716574244655,-13588.80762427,0.000275,5]
[327877895,1716574244678,-3732.0,0.000275,5]
[327877897,1716574244689,-9343.47790531,0.000275,5]
[327877921,1716574245359,-409.07901808,0.00027399,2]
[327877923,1716574245369,-184.00245332,0.000275,5]
[327878118,1716574249543,-31471.5,0.00017259,2]
[327878119,1716574249555,-459.4508895,0.00017259,2]
[327878120,1716574249566,-264.208,0.00017259,2]
[327878121,1716574249577,-949.65,0.00017259,2]
[327878122,1716574249588,-4346.37288164,0.00017259,2]
[327878123,1716574249598,-432.04405054,0.00024242,2]
[327878124,1716574249607,-472.96891044,0.00027399,2]
[327878125,1716574249616,-4876.8,0.000274,2]
[327878126,1716574249626,-80485.22971781,0.000275,5]
[327878127,1716574249770,-584.74,0.000275,5]
[327878128,1716574249782,-11262.44589035,0.000275,5]
[327878129,1716574249794,-687.27552852,0.000275,5]
[327878130,1716574249807,-267.2327988,0.000275,5]
[327878131,1716574249820,-335.60142443,0.000275,5]
[327878132,1716574249832,-1095.01419627,0.000275,5]
[327878133,1716574249844,-2552.84522715,0.000275,5]
[327878134,1716574249856,-4185.93724059,0.000275,5]
[327878135,1716574249947,-977.27155151,0.000275,5]
[327878984,1716574396456,1000.0,0.00030852,120]
[327878988,1716574672629,130.6069,0.00013972,2]
[327879093,1716575434227,-523.82451147,0.00013362,2]
[327879094,1716575434241,-1273.64909897,0.00013363,2]
[327879095,1716575434256,-150.0,0.00013377,2]
[327879096,1716575434265,-30112.83757956,0.00013378,2]
[327879097,1716575434274,-250.0,0.00013381,2]
[327879098,1716575434284,-268.35492957,0.0001397,2]
[327879099,1716575434293,-157.8016636,0.0001397,2]
[327879100,1716575434303,-623.795218,0.0001397,2]
[327879101,1716575434315,-344.59163649,0.0001397,2]
[327879102,1716575434324,-56.95423384,0.0001397,2]
[327879103,1716575434335,-232.47502927,0.0001397,2]
[327879104,1716575434344,-374.48555736,0.0001397,2]
[327879105,1716575434354,-697.03941337,0.0001397,2]
[327879106,1716575434365,-32.55695777,0.0001397,2]
[327879107,1716575434375,-377.93639023,0.0001397,2]
[327879108,1716575434386,-342.99516981,0.0001397,2]
[327879109,1716575434395,-155.0,0.0001397,2]
[327879110,1716575434405,-204.9501833,0.0001397,2]
[327879111,1716575434414,-155.0,0.00013971,2]
[327879112,1716575434424,-9162.11959527,0.00013972,2]
[327879142,1716575439279,-667.76472037,0.00013972,2]
[327879143,1716575439291,-326.82220256,0.00013972,2]
[327879144,1716575439558,-804.4421225,0.00013972,2]
[327879145,1716575439570,-66703.28915881,0.00013972,2]
[327879146,1716575439580,-1510.56438612,0.00013972,2]
[327879147,1716575439590,-254.83,0.00013973,2]
[327879148,1716575439599,-165.33,0.00013973,2]
[327879149,1716575439608,-155.0,0.00015,2]
[327879150,1716575439618,-154.77,0.00015,2]
[327879151,1716575439627,-300.0,0.00017059,2]
[327879152,1716575439636,-37441.72285721,0.00017259,2]
[327879153,1716575439646,-2515.44308967,0.000179,2]
[327879154,1716575439655,-319.03951323,0.000179,2]
[327879155,1716575439665,-223.57423909,0.00018,2]
[327879156,1716575439675,-329.18,0.00018862,2]
[327879157,1716575439684,-410.5352738,0.00019,2]
[327879158,1716575439694,-2515.44308967,0.00019844,2]
[327879159,1716575439704,-319.03951319,0.00019844,2]
[327879160,1716575439713,-609.0,0.0002,5]
[327879161,1716575439723,-547.45858614,0.0002,2]
[327879162,1716575439732,-6308.23950466,0.0002,2]
[327879163,1716575439742,-254.83,0.00020447,2]
[327879164,1716575439753,-989.55333402,0.00020625,2]
[327879165,1716575439763,-343.37,0.00020628,2]
[327879167,1716575439772,-250.0,0.00020754,2]
[327879169,1716575439782,-1050.0,0.00021,2]
[327879171,1716575439791,-2744.0,0.00021,3]
[327879173,1716575439801,-464.05,0.00021083,2]
[327879175,1716575439811,-329.18,0.00021126,2]
[327879177,1716575439821,-464.05,0.00021141,2]
[327879179,1716575439831,-11678.50745467,0.00021179,2]
[327879182,1716575439843,-8024.52254533,0.00021179,2]
[327879184,1716575439853,-464.05,0.00021199,2]
[327879186,1716575439863,-464.05,0.00021256,2]
[327879188,1716575439872,-167.0,0.0002126,2]
[327879190,1716575439882,-1500.0,0.00021265,2]
[327879192,1716575439892,-500.18,0.00021313,2]
[327879194,1716575439902,-464.05,0.00021314,2]
[327879196,1716575439912,-2585.99,0.00021325,2]
[327879198,1716575439922,-10264.42,0.0002134,2]
[327879200,1716575439932,-200.0,0.00021361,2]
[327879202,1716575439942,-464.05,0.00021372,2]
[327879204,1716575439951,-464.05,0.0002143,2]
[327879206,1716575439962,-464.05,0.00021488,2]
[327879208,1716575439971,-464.05,0.00021545,2]
[327879210,1716575439981,-418.3816422,0.00021603,2]
[327879212,1716575439993,-45.6683578,0.00021603,2]
[327879214,1716575440005,-464.05,0.00021661,2]
[327879216,1716575440015,-160.59493836,0.00021675,2]
[327879225,1716575440092,-2590.40506164,0.00021675,2]
[327879227,1716575440102,-464.05,0.00021719,2]
[327879229,1716575440112,-500.0,0.00021744,2]
[327879231,1716575440122,-464.05,0.00021777,2]
[327879233,1716575440131,-2515.44308967,0.00021789,2]
[327879235,1716575440141,-319.03951319,0.00021789,2]
[327879237,1716575440151,-464.05,0.00021834,2]
[327879239,1716575440161,-172.93,0.00021888,2]
[327879241,1716575440170,-464.05,0.00021892,2]
[327879243,1716575440181,-5596.36252826,0.000219,2]
[327879245,1716575440191,-750.0,0.000219,2]
[327879247,1716575440201,-250.0,0.00021918,2]
[327879249,1716575440210,-464.05,0.0002195,2]
[327879251,1716575440220,-9157.92762804,0.00022,2]
[327879253,1716575440232,-464.05,0.00022008,2]
[327879255,1716575440244,-464.05,0.00022066,2]
[327879257,1716575440256,-464.05,0.00022123,2]
[327879259,1716575440265,-464.05,0.00022181,2]
[327879261,1716575440276,-155.04118763,0.00022187,2]
[327879263,1716575440286,-155.76744125,0.00022391,2]
[327879265,1716575440296,-167.0,0.00022429,2]
[327879267,1716575440306,-160.36674768,0.00022462,2]
[327879269,1716575440318,-154.45963167,0.00022709,2]
[327879271,1716575440328,-154.57456769,0.00022978,2]
[327879273,1716575440338,-1100.0,0.00023,2]
[327879275,1716575440348,-151.19086018,0.00023369,2]
[327879277,1716575440359,-329.18,0.0002339,2]
[327879279,1716575440369,-2005.42016305,0.000234,2]
[327879281,1716575440379,-154.57456769,0.00023408,2]
[327879283,1716575440388,-685.49,0.00023476,2]
[327879285,1716575440397,-150.0,0.00023516,2]
[327879287,1716575440407,-167.0,0.00023599,2]
[327879289,1716575440416,-167.53,0.00023625,2]
[327879291,1716575440426,-2515.44308967,0.00023733,2]
[327879293,1716575440435,-319.03951319,0.00023733,2]
[327879295,1716575440445,-800.0,0.00023753,2]
[327879297,1716575440454,-154.30397504,0.00023918,2]
[327879300,1716575440464,-433.17021167,0.00024,2]
[327879302,1716575440474,-472.49632202,0.00024,2]
[327879304,1716575440483,-500.18,0.00024053,2]
[327879306,1716575440493,-180.0,0.0002423,2]
[327879309,1716575440503,-474.82,0.00024246,2]
[327879312,1716575440513,-1000.0,0.00024446,2]
[327879315,1716575440523,-154.30397504,0.00024469,2]
[327879318,1716575440533,-157.82414398,0.00024523,2]
[327879322,1716575440544,-750.0,0.000247,2]
[327879326,1716575440554,-167.0,0.00024769,2]
[327879329,1716575440563,-1150.0,0.00025,2]
[327879332,1716575440573,-2899.53387034,0.00025,4]
[327879334,1716575440583,-160937.76529799,0.00025,2]
[327879336,1716575440593,-151.19086018,0.00025108,2]
[327879338,1716575440603,-159.54669856,0.00025136,2]
[327879340,1716575440613,-153.51597191,0.00025387,2]
[327879342,1716575440623,-154.30397504,0.00025393,2]
[327879344,1716575440633,-151.19086018,0.00025447,2]
[327879346,1716575440643,-319.1908435,0.00025553,2]
[327879348,1716575440652,-151.19086018,0.00025568,2]
[327879350,1716575440662,-329.18,0.00025653,2]
[327879352,1716575440672,-2515.44308967,0.00025678,2]
[327879354,1716575440681,-319.03951319,0.00025678,2]
[327879356,1716575440690,-4976.6,0.00025689,2]
[327879358,1716575440700,-150.0,0.00026019,2]
[327879360,1716575440709,-282.075,0.00026204,2]
[327879362,1716575440719,-151.19086018,0.00026438,2]
[327879364,1716575440728,-154.30397504,0.00026454,2]
[327879366,1716575440738,-150.0,0.00026773,2]